bitfinex/quotes_ETHUSD_20250702
["timestamp","ask_amount","ask_price","bid_price","bid_amount"]
[1751444822990,3.10561384,2454.5,2454.4,0.01]
[1751444823707,1.47669662,2454.5,2454.4,0.01]
[1751444823878,4.74440392,2454.5,2454.4,0.01]
[1751444824200,2.30289662,2454.5,2454.4,0.01]
[1751444824686,0.8262,2454.4,2454.0,11.831]
[1751444824876,1.22198588,2454.1,2454.0,11.831]
[1751444825073,1.22198588,2454.1,2454.0,2.042]
[1751444825074,2.19454651,2454.1,2454.0,2.042]
[1751444825977,0.97256063,2454.1,2454.0,2.042]
[1751444826173,2.19466678,2454.1,2454.0,2.042]
[1751444826397,3.4165324,2454.1,2454.0,2.042]
[1751444826605,3.86383461,2454.1,2454.0,2.042]
[1751444827180,1.62306284,2454.1,2454.0,2.042]
[1751444828792,0.97256063,2454.1,2454.0,2.042]
[1751444832580,2.1931462,2454.1,2454.0,2.042]
[1751444834316,0.97256063,2454.1,2454.0,2.042]
[1751444834720,1.77146063,2454.1,2454.0,2.042]
[1751444835091,1.77146063,2454.1,2454.0,0.02]
[1751444835292,4.66000461,2454.1,2454.0,0.02]
[1751444836385,2.21603284,2454.1,2454.0,0.02]
[1751444841114,4.66000461,2454.1,2454.0,0.02]
[1751444841311,2.21603284,2454.1,2454.0,0.02]
[1751444842218,4.66000461,2454.1,2454.0,0.02]
[1751444842417,2.21603284,2454.1,2454.0,0.02]
[1751444843517,2.76603284,2454.1,2454.0,0.02]
[1751444843725,5.21000461,2454.1,2454.0,0.02]
[1751444843899,2.76603284,2454.1,2454.0,0.02]
[1751444844302,0.2032,2454.0,2453.9,0.01]
[1751444844514,1.47268391,2454.0,2453.9,0.01]
[1751444844931,3.11314621,2454.0,2453.9,0.01]
[1751444845235,5.55272376,2454.0,2453.9,0.01]
[1751444845905,3.11314621,2454.0,2453.9,0.01]
[1751444848132,13.86364621,2454.0,2453.9,0.01]
[1751444848732,13.86364621,2454.0,2453.6,0.01]
[1751444848940,2.4394039,2453.7,2453.6,0.01]
[1751444849138,3.41196453,2453.7,2453.6,0.01]
[1751444857957,0.97256063,2453.7,2453.6,0.01]
[1751444859156,3.41196453,2453.7,2453.6,0.01]
[1751444859351,0.97256063,2453.7,2453.6,0.01]
[1751444859655,1.49483337,2453.7,2453.6,0.01]
[1751444860538,3.93423727,2453.7,2453.6,0.01]
[1751444864478,3.61516453,2453.7,2453.6,0.01]
[1751444872268,1.17576063,2453.7,2453.6,0.01]
[1751444875408,1.17576063,2453.7,2453.5,0.01]
[1751444875712,3.41834355,2453.6,2453.5,0.01]
[1751444876288,3.42409621,2453.6,2453.5,0.01]
[1751444881218,3.78682583,2453.6,2453.5,0.01]
[1751444881555,2.09124291,2453.6,2453.5,0.01]
[1751444882317,1.34104291,2453.6,2453.5,0.01]
[1751444884143,3.62821352,2453.6,2453.5,0.01]
[1751444884611,1.18151329,2453.6,2453.5,0.01]
[1751444887155,0.2032,2453.6,2453.5,0.01]
[1751444891952,0.2232,2453.6,2453.5,0.01]
[1751444895122,0.2232,2453.6,2453.5,0.7697]
[1751444898677,3.64912493,2453.6,2453.5,0.7697]
[1751444899895,0.99883569,2453.6,2453.5,21.71315787]
[1751444900062,2.22219625,2453.6,2453.5,21.91635787]
[1751444900257,0.99883569,2453.6,2453.5,21.91635787]
[1751444900860,2.22219625,2453.6,2453.5,15.53528647]
[1751444901065,2.22219625,2453.6,2453.5,17.07071006]
[1751444901386,0.99883569,2453.6,2453.5,17.07071006]
[1751444901893,0.99883569,2453.6,2453.5,12.9949]
[1751444902102,0.99790281,2453.6,2453.5,17.07071006]
[1751444903064,0.99759839,2453.6,2453.5,12.9949]
[1751444903908,0.99759839,2453.6,2453.5,17.07071006]
[1751444904812,0.99759839,2453.6,2453.5,12.9949]
[1751444905036,1.21955803,2453.6,2453.5,0.01]
[1751444905187,2.64475602,2453.6,2453.5,0.01]
[1751444906101,1.42275803,2453.6,2453.5,0.01]
[1751444907434,1.20079839,2453.6,2453.5,0.01]
[1751444908839,2.83151844,2453.6,2453.5,0.01]
[1751444909541,2.8315211,2453.6,2453.5,0.01]
[1751444910410,2.6283211,2453.6,2453.5,0.01]
[1751444911859,0.99709882,2453.6,2453.5,0.7725]
[1751444912024,0.99709882,2453.6,2453.5,16.7881872]
[1751444912359,0.99709882,2453.6,2453.5,23.6113872]
[1751444913860,0.02,2453.6,2453.5,23.6113872]
[1751444920081,0.02,2453.6,2453.5,23.5113872]
[1751444924783,0.02,2453.6,2453.5,23.5213872]
[1751444927788,0.02,2453.9,2453.8,4.07531176]
[1751444927994,0.02,2453.9,2453.8,29.60064434]
[1751444928603,0.02,2453.9,2453.8,29.91367584]
[1751444931160,0.02,2453.9,2453.8,30.46367584]
[1751444931477,1.6404623,2454.0,2453.9,15.40134568]
[1751444934324,0.62044226,2454.0,2453.9,15.40134568]
[1751444934493,0.44025927,2454.0,2453.9,31.8897323]
[1751444934691,0.18018299,2454.0,2453.9,31.8897323]
[1751444936618,0.20018299,2454.0,2453.9,31.8897323]
[1751444938193,0.02,2454.4,2454.3,14.85318152]
[1751444938401,0.02,2454.4,2454.3,30.07345292]
[1751444938599,0.02,2454.4,2454.3,31.5642141]
[1751444939119,0.02,2454.9,2454.6,0.7787]
[1751444939304,0.02,2454.9,2454.8,20.45472302]
[1751444939507,0.02,2454.9,2454.8,20.65792302]
[1751444939819,0.02,2454.9,2454.8,21.43662302]
[1751444939980,0.02,2454.9,2454.8,23.38500964]
[1751444940179,0.99461624,2454.9,2454.8,23.38500964]
[1751444940385,0.02,2454.9,2454.8,23.38500964]
[1751444943093,0.02,2454.9,2454.8,23.73180964]
[1751444946494,0.02,2454.9,2454.8,31.81480964]
[1751444949742,0.02,2454.9,2454.8,6.02203824]
[1751444949940,0.02,2454.9,2454.8,12.70565162]
[1751444950100,0.02,2454.9,2454.8,22.70565162]
[1751444950500,0.02,2454.9,2454.8,14.07365162]
[1751444950814,0.02,2454.9,2454.8,22.70565162]
[1751444953122,0.02,2454.9,2454.8,22.90885162]
[1751444953756,0.02,2454.9,2454.8,10.2032]
[1751444954049,0.02,2454.9,2454.8,12.90885162]
[1751444954219,0.02,2454.9,2454.8,22.90885162]
[1751444957057,0.02,2454.9,2454.8,14.27685162]
[1751444957257,0.8117,2454.9,2454.5,0.01]
[1751444957456,0.97383891,2454.8,2454.6,6.612]
[1751444957755,0.97383891,2454.8,2454.5,0.01]
[1751444957756,0.9739126,2454.7,2454.5,0.01]
[1751444957954,0.7715,2454.8,2454.6,6.612]
[1751444958131,1.74541477,2454.7,2454.6,6.612]
[1751444959156,1.74541477,2454.7,2454.5,0.01]
[1751444959341,0.7715,2454.7,2454.5,6.623]
[1751444960363,0.7715,2454.7,2454.5,10.69707128]
[1751444960556,0.7715,2454.7,2454.5,6.623]
[1751444960741,0.7715,2454.7,2454.5,10.69705272]
[1751444960942,0.7715,2454.7,2454.6,4.07398354]
[1751444961150,1.74611271,2454.7,2454.6,4.07398354]
[1751444961758,1.74611271,2454.7,2454.5,6.623]
[1751444961960,0.97461271,2454.6,2454.5,0.01]
[1751444962130,0.97461271,2454.6,2454.5,8.641]
[1751444963562,0.97461271,2454.6,2454.5,12.71514952]
[1751444963766,0.97461271,2454.6,2454.5,8.641]
[1751444964066,0.97461271,2454.6,2454.5,12.71514952]
[1751444964529,0.97461271,2454.6,2454.5,22.71514952]
[1751444966999,0.97461271,2454.6,2454.5,29.09622092]
[1751444967295,0.97461271,2454.6,2454.5,29.29942092]
[1751444969686,0.97461271,2454.6,2454.5,22.91834952]
[1751444970489,1.2389741,2454.9,2454.5,8.8442]
[1751444970660,0.97444728,2454.8,2454.7,0.2032]
[1751444970992,0.97444728,2454.8,2454.7,6.8162]
[1751444973373,0.97444728,2454.8,2454.7,0.2032]
[1751444973573,2.08118942,2454.8,2454.7,8.632]
[1751444976414,3.30016352,2454.8,2454.7,8.632]
[1751444977394,3.30016352,2454.8,2454.5,0.01]
[1751444977734,3.01572138,2454.7,2454.6,2.019]
[1751444977912,3.53315996,2454.7,2454.6,2.019]
[1751444979408,2.31418586,2454.7,2454.6,2.019]
[1751444983231,3.94540814,2454.7,2454.6,2.019]
[1751444984045,2.31418586,2454.7,2454.6,2.019]
[1751444984342,3.94540814,2454.7,2454.6,2.019]
[1751444985206,3.42796956,2454.7,2454.6,2.019]
[1751444985572,2.19553875,2454.7,2454.6,12.90918354]
[1751444985755,0.97444728,2454.7,2454.6,12.90918354]
[1751444986344,2.19553875,2454.7,2454.6,12.90918354]
[1751444986504,2.19553875,2454.7,2454.6,17.02542105]
[1751444986703,2.19553875,2454.7,2454.6,13.68798354]
[1751444986939,2.19553875,2454.7,2454.6,23.68798354]
[1751444988143,0.97444728,2454.7,2454.6,23.68798354]
[1751444990318,0.97444728,2454.7,2454.6,19.614]
[1751444990732,0.97444728,2454.7,2454.6,23.68798354]
[1751444991241,2.19553875,2454.7,2454.6,19.614]
[1751444991738,0.97444728,2454.7,2454.6,19.614]
[1751444993438,2.19553875,2454.7,2454.6,19.614]
[1751444994211,2.19553875,2454.7,2454.6,18.8352]
[1751444994409,2.19553875,2454.7,2454.6,18.8332]
[1751444995316,0.97444728,2454.7,2454.6,18.8332]
[1751444995718,2.19553875,2454.7,2454.6,18.8332]
[1751444995920,0.97444728,2454.7,2454.6,18.8332]
[1751444996746,2.19553875,2454.7,2454.6,18.8332]
[1751445000159,0.97444728,2454.7,2454.6,18.8312]
[1751445001895,0.97444728,2454.7,2454.6,31.65686803]
[1751445003143,0.02,2454.8,2454.7,4.86341757]
[1751445003336,0.99684967,2454.8,2454.7,4.86341757]
[1751445004625,0.02,2454.8,2454.7,4.86341757]
[1751445004829,0.02,2454.8,2454.7,14.07381757]
[1751445005135,0.02,2454.8,2454.7,15.97525228]
[1751445006763,0.02,2454.8,2454.7,24.60325228]
[1751445007268,0.02,2454.8,2454.7,20.52843471]
[1751445007577,0.02,2454.8,2454.7,24.60225228]
[1751445008265,0.02,2454.8,2454.7,19.69553471]
[1751445008465,0.02,2454.8,2454.7,23.76935228]
[1751445009448,0.9959467,2454.8,2454.7,11.06853471]
[1751445009771,0.9959467,2454.8,2454.7,15.14235228]
[1751445009969,0.9959467,2454.8,2454.7,23.76935228]
[1751445011668,0.9959467,2454.8,2454.7,15.14235228]
[1751445011968,0.9959467,2454.8,2454.7,18.627]
[1751445012164,1.7919467,2454.8,2454.7,10.0]
[1751445012471,1.7919467,2454.8,2454.7,18.627]
[1751445012840,1.7919467,2454.8,2454.7,12.017]
[1751445013165,1.7919467,2454.8,2454.7,18.627]
[1751445014559,3.01303817,2454.8,2454.7,18.627]
[1751445016349,3.01303817,2454.8,2454.7,10.0]
[1751445016670,2.28069275,2454.8,2454.7,6.61]
[1751445016915,3.01298455,2454.8,2454.7,6.61]
[1751445017042,2.21698455,2454.8,2454.7,6.61]
[1751445017843,0.9959467,2454.8,2454.7,6.61]
[1751445018243,2.21698455,2454.8,2454.7,6.61]
[1751445018457,2.21698455,2454.8,2454.6,10.0]
[1751445018660,1.24103785,2454.8,2454.7,8.627]
[1751445018850,2.21782438,2454.8,2454.7,8.627]
[1751445021365,2.21782438,2454.8,2454.7,8.625]
[1751445022752,2.21772738,2454.8,2454.7,8.626]
[1751445022989,0.99678653,2454.8,2454.7,8.626]
[1751445024187,0.99678653,2454.8,2454.5,4.08412309]
[1751445024403,2.19766125,2454.7,2454.6,18.626]
[1751445025857,2.99206125,2454.7,2454.6,18.626]
[1751445026993,2.19766125,2454.7,2454.6,18.626]
[1751445027973,2.19766125,2454.7,2454.6,22.69998354]
[1751445028168,2.19766125,2454.7,2454.6,18.626]
[1751445028759,2.19766125,2454.7,2454.6,10.0]
[1751445028976,2.19766125,2454.7,2454.6,18.626]
[1751445030999,0.7873,2454.6,2454.5,2.026]
[1751445031298,1.76408653,2454.6,2454.5,6.62]
[1751445031502,1.96728653,2454.6,2454.5,6.62]
[1751445031997,0.97678653,2454.6,2454.5,10.69414952]
[1751445032484,0.97678653,2454.6,2454.5,22.47406568]
[1751445035099,0.97678653,2454.6,2454.5,28.85513708]
[1751445035502,0.97678653,2454.6,2454.5,29.61503708]
[1751445036496,0.97678653,2454.6,2454.5,29.41503708]
[1751445037814,0.02,2454.9,2454.7,4.07381757]
[1751445037967,0.02,2454.9,2454.8,29.69405466]
[1751445038171,0.99670283,2454.9,2454.8,29.69405466]
[1751445038400,0.99670283,2454.9,2454.8,28.92615466]
[1751445038705,0.99670283,2454.9,2454.8,29.69405466]
[1751445038925,1e-08,2454.9,2454.8,30.24405466]
[1751445039273,0.02,2455.0,2454.8,30.24405466]
[1751445039478,0.02,2455.0,2454.9,16.67180184]
[1751445040593,0.02,2455.0,2454.9,25.29680184]
[1751445043416,0.02,2455.0,2454.9,25.29580184]
[1751445043919,0.02,2455.0,2454.9,31.67687324]
[1751445044296,0.02,2455.0,2454.9,16.67180184]
[1751445044498,0.02,2455.0,2454.9,29.66687324]
[1751445044879,1e-08,2455.0,2454.9,29.66687324]
[1751445045493,1e-08,2455.0,2454.9,30.21687324]
[1751445046081,1e-08,2455.0,2454.9,16.67180184]
[1751445046287,1e-08,2455.0,2454.9,2.016]
[1751445046506,1e-08,2455.0,2454.9,6.08948568]
[1751445046711,1e-08,2455.0,2454.9,4.07348568]
[1751445046931,1e-08,2455.0,2454.9,12.73248568]
[1751445047219,1e-08,2455.0,2454.9,22.73248568]
[1751445047430,1e-08,2455.0,2454.9,14.07348568]
[1751445047717,1e-08,2455.0,2454.9,22.73248568]
[1751445048422,1e-08,2455.0,2454.9,22.73148568]
[1751445049445,1e-08,2455.0,2454.9,20.71548568]
[1751445049446,0.76060001,2455.0,2454.9,20.71548568]
[1751445049792,1e-08,2455.0,2454.9,20.71548568]
[1751445050828,0.97480828,2455.0,2454.9,20.71548568]
[1751445056815,0.97480828,2455.0,2454.9,22.74148568]
[1751445057234,0.97480828,2455.0,2454.9,14.07348568]
[1751445057424,0.97480828,2455.0,2454.9,22.74248568]
[1751445061662,0.97480828,2455.0,2454.9,22.75248568]
[1751445064011,0.97480828,2455.0,2454.9,12.043]
[1751445064217,1.19433679,2455.0,2454.9,10.01]
[1751445064516,1.19433679,2455.0,2454.5,0.01]
[1751445064517,0.9976,2454.9,2454.5,0.01]
[1751445064733,1.42409642,2454.7,2454.5,0.01]
[1751445064933,1.97240827,2454.6,2454.5,0.01]
[1751445065626,3.1932484,2454.6,2454.5,4.08414952]
[1751445065833,3.60027016,2454.6,2454.5,4.08414952]
[1751445066025,3.60027016,2454.6,2454.5,6.641]
[1751445066226,1.97240827,2454.6,2454.5,6.641]
[1751445066446,1.76920827,2454.6,2454.5,10.71514952]
[1751445066837,2.19503409,2454.6,2454.5,10.71514952]
[1751445068234,2.19503409,2454.6,2454.5,20.71514952]
[1751445068557,0.97480827,2454.6,2454.5,20.71514952]
[1751445071264,1.21893012,2454.8,2454.7,4.07368537]
[1751445071426,2.86169041,2455.0,2454.7,10.70168537]
[1751445071631,0.28616904,2454.9,2454.7,6.628]
[1751445071866,1.23382852,2455.0,2454.7,6.628]
[1751445072368,1.01430001,2455.0,2454.7,6.628]
[1751445072579,1.01430001,2455.0,2454.6,0.2032]
[1751445072734,0.7928,2454.9,2454.5,10.01]
[1751445072929,0.8205,2454.5,2454.1,2.033]
[1751445073174,0.55000001,2455.0,2454.1,2.033]
[1751445073175,1.0329,2454.3,2454.1,2.033]
[1751445073953,0.97527751,2454.2,2453.9,0.01]
[1751445074136,1.80497751,2454.1,2453.9,0.01]
[1751445074350,0.8297,2454.1,2453.9,0.01]
[1751445075468,0.97467484,2454.0,2453.9,0.01]
[1751445075771,0.8297,2454.1,2453.9,0.01]
[1751445076141,0.97488346,2454.0,2453.9,0.01]
[1751445076337,0.8297,2454.1,2453.9,0.01]
[1751445076581,1.69569738,2454.0,2453.9,0.01]
[1751445077875,0.97462024,2454.0,2453.9,0.01]
[1751445081391,9.88998853,2454.0,2453.9,0.01]
[1751445081687,8.67089164,2454.0,2453.9,0.01]
[1751445082288,9.88643368,2454.0,2453.9,0.01]
[1751445082581,0.7568,2453.5,2453.4,0.01]
[1751445082787,1.7293259,2453.5,2453.4,0.01]
[1751445083865,2.94498328,2453.5,2453.4,0.01]
[1751445084387,2.2793259,2453.5,2453.4,0.01]
[1751445084561,3.49498328,2453.5,2453.4,0.01]
[1751445084762,4.6446764,2453.5,2453.4,0.01]
[1751445085192,4.0946764,2453.5,2453.4,0.01]
[1751445085497,1.7293259,2453.5,2453.4,0.01]
[1751445086294,8.1103973,2453.5,2453.4,0.01]
[1751445086496,9.87605468,2453.5,2453.4,0.01]
[1751445087305,7.6878714,2453.5,2453.4,0.01]
[1751445087454,8.6603973,2453.5,2453.4,0.01]
[1751445087792,10.47279042,2453.5,2453.4,0.01]
[1751445089489,11.6884478,2453.5,2453.4,0.01]
[1751445089691,11.9333764,2453.5,2453.4,0.01]
[1751445089893,10.71771902,2453.5,2453.4,0.01]
[1751445090462,11.9333764,2453.5,2453.4,0.01]
[1751445091294,18.3144478,2453.5,2453.4,0.01]
[1751445092192,17.09879042,2453.5,2453.4,0.01]
[1751445093498,18.71966692,2453.5,2453.4,0.01]
[1751445094299,17.09879042,2453.5,2453.4,0.01]
[1751445094504,10.47279042,2453.5,2453.4,0.01]
[1751445094664,3.54171902,2453.5,2453.4,0.01]
[1751445094994,5.1614127,2453.5,2453.4,0.01]
[1751445095396,2.78491902,2453.5,2453.4,0.01]
[1751445095565,2.59257596,2453.5,2453.4,0.01]
[1751445097384,0.9725259,2453.5,2453.4,0.01]
[1751445099266,3.41065166,2453.5,2453.4,0.01]
[1751445099674,6.3810714,2453.8,2453.4,0.01]
[1751445100112,6.3810714,2453.6,2453.4,0.01]
[1751445100307,0.63810714,2453.5,2453.4,0.01]
[1751445101397,0.2032,2453.4,2453.3,0.01]
[1751445102606,0.5348,2453.4,2453.3,0.01]
[1751445108891,0.2032,2453.4,2453.3,0.01]
[1751445111123,0.2032,2453.4,2453.3,0.8168]
[1751445111816,1.18123139,2453.4,2453.3,0.01]
[1751445112516,1.18123139,2453.4,2453.1,0.01]
[1751445112691,0.2032,2453.2,2453.1,0.01]
[1751445112890,1.18123139,2453.2,2453.1,0.01]
[1751445118733,1.18123139,2453.2,2453.1,0.7639]
[1751445119405,1.18123139,2453.2,2453.1,0.01]
[1751445119606,3.6286492,2453.2,2453.1,0.01]
[1751445121532,1.67249631,2453.2,2453.1,0.01]
[1751445123095,1.67249631,2453.2,2453.0,0.01]
[1751445123298,8.24070279,2453.1,2453.0,0.01]
[1751445123494,14.85870279,2453.1,2453.0,0.01]
[1751445123902,0.55,2453.0,2452.9,0.01]
[1751445124127,4.55442706,2453.0,2452.9,0.01]
[1751445125846,14.55442706,2453.0,2452.9,0.01]
[1751445126708,16.57442706,2453.0,2452.9,0.01]
[1751445128005,23.19242706,2453.0,2452.9,0.01]
[1751445128223,21.17242706,2453.0,2452.9,0.01]
[1751445128739,20.62242706,2453.0,2452.9,0.01]
[1751445129147,21.17242706,2453.0,2452.9,0.01]
[1751445131947,24.42881605,2453.0,2452.9,0.01]
[1751445132709,23.45078466,2453.0,2452.9,0.01]
[1751445132909,20.19439567,2453.0,2452.9,0.01]
[1751445136527,13.57639567,2453.0,2452.9,0.01]
[1751445136828,13.57639567,2453.0,2452.8,0.01]
[1751445136829,24.09100542,2453.0,2452.8,0.01]
[1751445137057,2.19894671,2452.9,2452.8,0.01]
[1751445137413,3.17445665,2452.9,2452.8,0.01]
[1751445138150,3.17445665,2452.9,2452.6,0.7535]
[1751445138327,1.62546687,2452.7,2452.6,0.7535]
[1751445138528,2.60097681,2452.7,2452.6,0.7535]
[1751445138744,0.97550994,2452.7,2452.6,0.7535]
[1751445140051,2.60093448,2452.7,2452.6,0.7535]
[1751445141347,2.80413448,2452.7,2452.6,0.7535]
[1751445144158,2.80413448,2452.7,2452.5,0.01]
[1751445144349,2.19523091,2452.6,2452.5,0.01]
[1751445144859,0.97550994,2452.6,2452.5,0.01]
[1751445145160,1.41105549,2452.6,2452.5,0.01]
[1751445145391,9.33105549,2452.6,2451.9,0.1385722]
[1751445145660,6.3810714,2452.0,2451.6,0.7824]
[1751445145859,1.6263839,2451.8,2451.6,0.7824]
[1751445146048,1.6263839,2451.8,2451.1,10.0]
[1751445146049,0.97550994,2451.7,2451.2,0.7595]
[1751445146251,2.19519553,2451.6,2451.2,0.7595]
[1751445146428,0.97550994,2451.5,2451.2,0.7595]
[1751445146628,1.21968559,2451.6,2451.2,0.7595]
[1751445146629,0.97550994,2451.4,2451.2,0.5595]
[1751445146831,0.97550994,2451.3,2451.2,0.5595]
[1751445147156,0.97520266,2451.3,2451.2,0.5595]
[1751445150783,0.97520266,2451.3,2450.5,6.3810714]
[1751445150784,0.97520266,2451.3,2450.8,0.7517]
[1751445150982,0.97520266,2451.2,2450.8,2.7717]
[1751445151189,0.97520266,2451.1,2451.0,4.83158669]
[1751445151387,0.97520266,2451.3,2451.0,4.83158669]
[1751445151684,0.97520266,2451.2,2451.0,4.83158669]
[1751445151851,0.97520266,2451.4,2451.0,4.83158669]
[1751445152049,0.97520266,2451.3,2451.0,4.83158669]
[1751445152250,0.97520266,2451.2,2451.0,0.7517]
[1751445152444,1.21968559,2451.5,2451.0,0.7517]
[1751445152445,0.97520266,2451.4,2451.0,0.7517]
[1751445152673,0.97520266,2451.3,2451.0,0.7517]
[1751445152983,0.97520266,2451.2,2451.0,0.7517]
[1751445153158,0.97520266,2451.4,2451.0,0.7517]
[1751445153360,0.97520266,2451.3,2451.0,0.7517]
[1751445153560,0.97520266,2451.2,2451.0,0.7517]
[1751445153772,0.97520266,2451.4,2451.0,0.7517]
[1751445153971,0.97520266,2451.3,2451.0,0.7517]
[1751445154283,0.97520266,2451.4,2451.0,0.7517]
[1751445154486,0.97520266,2451.3,2451.0,0.7517]
[1751445154670,0.97520266,2451.4,2451.0,4.83164958]
[1751445154867,0.97520266,2451.3,2451.0,4.83164958]
[1751445155071,1.21968559,2451.5,2450.8,0.7694]
[1751445155072,0.97520266,2451.2,2450.8,0.7694]
[1751445155251,0.97520266,2451.3,2450.8,0.7694]
[1751445155450,0.2032,2451.1,2450.8,0.7694]
[1751445155744,0.2032,2451.1,2450.8,4.84966129]
[1751445156376,0.2032,2451.1,2450.9,4.08013381]
[1751445156757,0.2032,2451.1,2451.0,0.01]
[1751445158776,0.2032,2451.3,2451.0,0.01]
[1751445158976,1.17840266,2451.3,2451.0,0.01]
[1751445159173,0.2032,2451.3,2451.0,0.01]
[1751445159376,1.17840266,2451.3,2451.0,0.01]
[1751445159600,0.2032,2451.3,2451.0,0.01]
[1751445159882,0.2032,2451.3,2451.1,4.86777088]
[1751445159883,1.17840266,2451.3,2451.1,4.86777088]
[1751445160088,0.2032,2451.3,2451.1,4.86777088]
[1751445160286,1.17840266,2451.3,2451.1,0.7881]
[1751445160491,0.2032,2451.3,2451.1,0.7881]
[1751445160668,1.17840266,2451.3,2451.1,0.7881]
[1751445160868,0.2032,2451.3,2451.1,4.86788739]
[1751445161069,1.17840266,2451.3,2451.1,4.86788739]
[1751445161268,0.2032,2451.3,2451.1,0.7881]
[1751445161470,1.17840266,2451.3,2451.1,4.86789206]
[1751445161768,0.2032,2451.3,2451.1,4.86789206]
[1751445161970,1.17840266,2451.3,2451.1,4.86789206]
[1751445162174,0.2032,2451.3,2451.1,0.7881]
[1751445162513,1.17840266,2451.3,2451.1,0.7881]
[1751445162785,0.2032,2451.3,2451.1,4.86786913]
[1751445162993,1.17840266,2451.3,2451.2,4.07963446]
[1751445163588,0.2032,2451.3,2451.1,4.8678139]
[1751445163765,1.17840266,2451.3,2451.1,4.8678139]
[1751445163965,0.2032,2451.3,2451.1,4.8678139]
[1751445164297,0.97520266,2451.2,2451.1,4.8678139]
[1751445165267,0.97520266,2451.2,2451.1,0.7881]
[1751445166596,0.97520266,2451.2,2451.1,4.8679009]
[1751445166970,0.97520266,2451.2,2451.1,0.7881]
[1751445167695,0.97520266,2451.2,2451.1,4.8679009]
[1751445169298,0.97520266,2451.2,2451.1,0.7881]
[1751445170304,0.97520266,2451.2,2451.1,4.8679009]
[1751445170806,0.97520266,2451.2,2451.1,0.7881]
[1751445171906,1.19669149,2451.2,2451.0,0.01]
[1751445172110,0.97520266,2451.1,2451.0,0.01]
[1751445173804,0.97520266,2451.1,2451.0,4.89636736]
[1751445174304,0.97520266,2451.1,2451.0,14.89636736]
[1751445174491,0.97520266,2451.1,2451.0,0.01]
[1751445174815,2.19488825,2451.1,2451.0,0.01]
[1751445175312,0.97520266,2451.1,2451.0,0.01]
[1751445175469,1.48135784,2451.1,2451.0,0.01]
[1751445177004,2.7037977,2451.1,2451.0,0.01]
[1751445177205,1.48135784,2451.1,2451.0,0.01]
[1751445177615,0.97520266,2451.1,2451.0,0.01]
[1751445179012,2.60158656,2451.1,2451.0,0.01]
[1751445180093,3.13318656,2451.1,2451.0,0.01]
[1751445181300,1.50680266,2451.1,2451.0,0.01]
[1751445184629,3.94676786,2451.1,2451.0,0.01]
[1751445184799,4.98355179,2451.1,2451.0,0.01]
[1751445185004,3.09358659,2451.1,2451.0,0.01]
[1751445185205,1.50680266,2451.1,2451.0,0.01]
[1751445185613,3.95050657,2451.1,2451.0,0.01]
[1751445186392,4.50050657,2451.1,2451.0,0.01]
[1751445187025,2.05680266,2451.1,2451.0,0.01]
[1751445187226,12.05680266,2451.1,2451.0,0.01]
[1751445187442,15.69659007,2451.1,2451.0,0.01]
[1751445187720,0.7532,2451.0,2450.2,0.01]
[1751445187932,0.204,2450.3,2450.2,0.01]
[1751445188096,1.17920266,2450.3,2450.2,0.01]
[1751445188419,0.97520266,2450.3,2450.2,0.01]
[1751445189657,1.17920266,2450.3,2450.2,0.01]
[1751445189842,1.41925431,2450.3,2450.2,0.01]
[1751445190705,1.41925431,2450.3,2450.2,0.01]
[1751445192219,1.17920266,2450.3,2450.2,0.01]
[1751445192722,0.97520266,2450.3,2450.2,0.01]
[1751445193445,0.97520266,2450.3,2450.2,4.09129948]
[1751445194330,0.97520266,2450.3,2450.2,5.11649948]
[1751445194525,0.97520266,2450.3,2450.2,1.0352]
[1751445195344,0.97520266,2450.3,2450.2,5.11649948]
[1751445195513,0.97520266,2450.3,2450.2,0.214]
[1751445196141,0.97520266,2450.3,2450.2,0.01]
[1751445196313,1.19485431,2450.3,2450.2,0.01]
[1751445197211,1.19485431,2450.3,2450.2,4.09129948]
[1751445197212,0.97520266,2450.3,2450.2,4.09129948]
[1751445197415,0.97520266,2450.3,2450.2,0.01]
[1751445197634,0.97520266,2450.3,2450.2,4.09129948]
[1751445198019,0.97520266,2450.3,2450.2,4.91249948]
[1751445200358,0.97520266,2450.3,2450.2,0.01]
[1751445201223,1.21525431,2450.3,2450.2,0.01]
[1751445202452,0.97520266,2450.3,2450.2,0.01]
[1751445203168,0.97520266,2450.3,2450.2,0.8067]
[1751445203469,0.97520266,2450.3,2450.2,5.09199948]
[1751445207673,0.9747726,2450.3,2450.2,5.09199948]
[1751445207972,0.9747726,2450.3,2450.2,1.0107]
[1751445208129,0.9747726,2450.3,2450.2,0.214]
[1751445208871,0.9747726,2450.3,2450.2,5.09759948]
[1751445209056,0.9747726,2450.3,2450.2,1.0163]
[1751445209256,0.9747726,2450.3,2450.2,5.09759948]
[1751445210465,0.9747726,2450.3,2450.2,7.31901202]
[1751445210667,0.9747726,2450.3,2450.2,13.70008342]
[1751445211845,0.9747726,2450.3,2450.2,11.47867088]
[1751445213372,1.22020661,2450.5,2450.3,4.08105396]
[1751445213572,0.9761684,2450.4,2450.3,4.08105396]
[1751445213969,0.9761684,2450.4,2450.3,4.28505396]
[1751445217273,2.19637501,2450.4,2450.3,4.28505396]
[1751445219770,0.9761684,2450.4,2450.3,4.28505396]
[1751445221096,0.9761684,2450.4,2450.3,5.09915396]
[1751445221442,0.9761684,2450.4,2450.3,7.32150644]
[1751445223296,0.9761684,2450.4,2450.3,17.32150644]
[1751445224551,1.22020661,2450.9,2450.8,4.08030031]
[1751445224863,2.19692399,2450.9,2450.7,0.7559]
[1751445225065,0.97671738,2450.8,2450.7,4.0804668]
[1751445225473,0.97671738,2450.8,2450.7,4.2844668]
[1751445225847,0.97671738,2450.8,2450.7,0.204]
[1751445227569,0.97671738,2450.8,2450.7,4.2844668]
[1751445228084,0.97671738,2450.8,2450.7,7.29007291]